[Event "22nd ETCC Women 2019"]
[Site "Batumi"]
[Date "2019.10.24"]
[Round "1.6"]
[White "Zimina, Olga"]
[Black "Heinatz, Gundula"]
[Result "1-0"]
[ECO "A05"]
[WhiteElo "2397"]
[BlackElo "2175"]
[Annotator "NA"]
[PlyCount "69"]
[EventDate "2019.10.24"]
[EventType "team-tourn"]
[EventCountry "GEO"]
[SourceTitle "playchess.com"]
[Source "ChessBase"]
[SourceQuality "1"]
[WhiteTeam "Italy"]
[BlackTeam "Switzerland"]
[WhiteTeamCountry "ITA"]
[BlackTeamCountry "SUI"]
[TimeControl "40/5400+30:1800+30"]

1. Nf3 {[%emt 0:00:00]} Nf6 {[%emt 0:00:00]} 2. c4 {[%emt 0:00:00]} c6 {[%emt 0:00:09]} 3. g3 {[%emt 0:00:39]} d5 {[%emt 0:00:06]} 4. Bg2 {[%emt 0:00:04]} Bg4 {[%emt 0:00:24]} 5. Ne5 {[%emt 0:00:21]} Be6 {[%emt 0:00:19]} 6. cxd5 {[%emt 0:00:21]} Bxd5 {[%emt 0:00:18]} 7. Nf3 {[%emt 0:00:06]} c5 {[%emt 0:00:46]} 8. Nc3 {[%emt 0:00:06]} Bc6 {[%emt 0:00:23]} 9. O-O {[%emt 0:00:07]} e6 {[%emt 0:00:51]} 10. Re1 {[%emt 0:01:30]} Be7 {[%emt 0:05:13]} 11. e4 {[%emt 0:00:54]} O-O {[%emt 0:00:54]} 12. d4 {[%emt 0:03:22]} cxd4 {[%emt 0:06:48]} 13. Nxd4 {[%emt 0:02:55]} Bc5 {[%emt 0:05:11]} 14. Be3 {[%emt 0:10:21]} Nbd7 {[%emt 0:28:01]} 15. Qe2 {[%emt 0:10:00]} Qe7 {[%emt 0:12:20]} 16. Rac1 {[%emt 0:02:51]} Bxd4 {[%emt 0:05:54]} 17. Bxd4 {[%emt 0:01:39]} e5 {[%emt 0:00:40]} 18. Nd5 {[%emt 0:12:29]} Qd6 {[%emt 0:00:54]} 19. Bc3 {[%emt 0:01:52]} Bxd5 {[%emt 0:01:59]} 20. exd5 {[%emt 0:00:34]} Rfe8 {[%emt 0:00:55]} 21. Qb5 {[%emt 0:03:37]} e4 {[%emt 0:15:15]} 22. Qxb7 {[%emt 0:08:56]} Nc5 {[%emt 0:01:14]} 23. Qb4 {[%emt 0:00:46]} Rab8 {[%emt 0:03:13]} 24. Qa3 {[%emt 0:01:03]} Qxd5 {[%emt 0:04:29]} 25. Bxf6 {[%emt 0:01:20]} Nd3 {[%emt 0:00:08]} 26. Bc3 {[%emt 0:03:44]} Nxc1 {[%emt 0:00:26]} 27. Rxc1 {[%emt 0:00:08]} h5 {[%emt 0:01:31]} 28. Re1 {[%emt 0:01:10]} Qd7 {[%emt 0:01:45]} 29. Qa5 {[%emt 0:02:51]} h4 {[%emt 0:00:39]} 30. Qg5 {[%emt 0:00:11]} f5 {[%emt 0:01:28]} 31. Qxh4 {[%emt 0:00:17]} Rb6 {[%emt 0:02:08]} 32. Qg5 {[%emt 0:01:52]} Qf7 {[%emt 0:00:26]} 33. Bh3 {[%emt 0:02:03]} Rf8 {[%emt 0:00:24]} 34. Bxf5 {[%emt 0:02:18]} g6 {[%emt 0:00:39]} 35. Qh6 {[%emt 0:00:30]} 1-0

[Event "22nd ETCC Women 2019"]
[Site "Batumi"]
[Date "2019.10.24"]
[Round "1.6"]
[White "Petrova, Kristyna"]
[Black "Javakhishvili, Lela"]
[Result "1/2-1/2"]
[ECO "B31"]
[WhiteElo "2259"]
[BlackElo "2457"]
[Annotator "ChessBase"]
[PlyCount "61"]
[EventDate "2019.10.24"]
[EventType "team-tourn"]
[EventCountry "GEO"]
[SourceTitle "playchess.com"]
[Source "ChessBase"]
[SourceQuality "1"]
[WhiteTeam "Czech Republic"]
[BlackTeam "Georgia"]
[WhiteTeamCountry "CZE"]
[BlackTeamCountry "GEO"]
[TimeControl "40/5400+30:1800+30"]

1. e4 c5 2. Nf3 Nc6 3. Bb5 g6 4. Bxc6 bxc6 5. O-O Bg7 {[%emt 0:04:34]} 6. c3 {[%emt 0:01:27]} Nh6 {[%emt 0:02:24]} 7. Re1 {[%emt 0:01:28]} O-O {[%emt 0:01:40]} 8. d4 {[%emt 0:00:51]} cxd4 {[%emt 0:06:41]} 9. cxd4 {[%emt 0:00:18]} d5 {[%emt 0:05:38]} 10. e5 f6 11. exf6 {[%emt 0:02:59]} exf6 {[%emt 0:02:17]} 12. Nbd2 {[%emt 0:01:40]} g5 {[%emt 0:03:37]} 13. h3 {[%emt 0:11:39]} Qd6 {[%emt 0:09:15]} 14. Nb3 {[%emt 0:09:25]} g4 {[%emt 0:07:14]} 15. hxg4 {[%emt 0:00:30]} Bxg4 {[%emt 0:00:14]} 16. g3 {[%emt 0:12:23]} Nf7 {[%emt 0:09:28]} 17. Bf4 {[%emt 0:01:55]} Qd7 {[%emt 0:01:27]} 18. Qd3 {[%emt 0:20:58]} Rae8 {[%emt 0:10:18]} 19. Nc5 {[%emt 0:02:04]} Qc8 {[%emt 0:00:13]} 20. Nh2 {[%emt 0:06:00]} Ng5 {[%emt 0:01:31]} 21. Bxg5 {[%emt 0:03:58]} fxg5 {[%emt 0:00:12]} 22. Qd2 {[%emt 0:00:02]} h6 {[%emt 0:01:59]} 23. Rxe8 {[%emt 0:05:07]} Rxe8 {[%emt 0:00:03]} 24. Nxg4 {[%emt 0:00:30]} Qxg4 {[%emt 0:00:05]} 25. Re1 {[%emt 0:00:12]} Rxe1+ {[%emt 0:07:44]} 26. Qxe1 {[%emt 0:00:02]} Bxd4 {[%emt 0:06:53]} 27. Qe8+ {[%emt 0:01:27]} Kh7 {[%emt 0:00:35]} 28. Qf7+ {[%emt 0:01:12]} Kh8 {[%emt 0:00:18]} 29. Qf8+ {[%emt 0:00:59]} Kh7 {[%emt 0:00:05]} 30. Qf7+ {[%emt 0:00:04]} Kh8 {[%emt 0:00:03]} 31. Qf8+ {[%emt 0:00:05]} 1/2-1/2

[Event "22nd ETCC Women 2019"]
[Site "Batumi"]
[Date "2019.10.24"]
[Round "1.7"]
[White "Khotenashvili, Bela"]
[Black "Sikorova, Olga"]
[Result "1/2-1/2"]
[ECO "A48"]
[WhiteElo "2446"]
[BlackElo "2234"]
[Annotator "NA"]
[PlyCount "105"]
[EventDate "2019.10.24"]
[EventType "team-tourn"]
[EventCountry "GEO"]
[SourceTitle "playchess.com"]
[Source "ChessBase"]
[SourceQuality "1"]
[WhiteTeam "Georgia"]
[BlackTeam "Czech Republic"]
[WhiteTeamCountry "GEO"]
[BlackTeamCountry "CZE"]
[TimeControl "40/5400+30:1800+30"]

1. d4 {[%emt 0:00:00]} Nf6 {[%emt 0:00:00]} 2. Nf3 {[%emt 0:00:00]} g6 {[%emt 0:00:00]} 3. Bg5 {[%emt 0:00:07]} Bg7 {[%emt 0:00:04]} 4. Nbd2 {[%emt 0:00:06]} d5 {[%emt 0:04:27]} 5. e3 {[%emt 0:00:08]} c5 {[%emt 0:03:03]} 6. c3 {[%emt 0:00:24]} Qb6 {[%emt 0:00:53]} 7. Qb3 {[%emt 0:00:40]} c4 {[%emt 0:01:35]} 8. Qa3 {[%emt 0:00:22]} Bf8 {[%emt 0:03:52]} 9. Ne5 {[%emt 0:09:56]} Nfd7 {[%emt 0:13:16]} 10. Nxd7 {[%emt 0:08:19]} Bxd7 {[%emt 0:04:04]} 11. b3 {[%emt 0:01:45]} f6 {[%emt 0:03:08]} 12. Bh4 {[%emt 0:00:54]} e5 {[%emt 0:00:11]} 13. Qc1 {[%emt 0:01:28]} exd4 {[%emt 0:08:15]} 14. exd4 {[%emt 0:02:04]} cxb3 {[%emt 0:05:25]} 15. axb3 {[%emt 0:02:25]} Bh6 {[%emt 0:03:05]} 16. Be2 {[%emt 0:03:45]} O-O {[%emt 0:04:23]} 17. O-O {[%emt 0:01:21]} Nc6 {[%emt 0:07:38]} 18. Rd1 {[%emt 0:09:00]} Ne7 {[%emt 0:01:38]} 19. Bf3 {[%emt 0:06:14]} Be6 {[%emt 0:04:07]} 20. Bg3 {[%emt 0:05:42]} Nf5 {[%emt 0:00:34]} 21. Qb2 {[%emt 0:09:09]} Bf7 {[%emt 0:01:36]} 22. Nf1 {[%emt 0:02:21]} Rfe8 {[%emt 0:04:45]} 23. Qa3 {[%emt 0:10:29]} a6 {[%emt 0:04:03]} 24. Bg4 {[%emt 0:05:23]} Nxg3 {[%emt 0:01:22]} 25. hxg3 {[%emt 0:02:36]} f5 {[%emt 0:00:46]} 26. Bf3 {[%emt 0:00:12]} Rac8 {[%emt 0:00:25]} 27. Rd3 {[%emt 0:06:41]} Rc7 {[%emt 0:01:18]} 28. g4 {[%emt 0:03:19]} fxg4 {[%emt 0:05:51]} 29. Bxg4 {[%emt 0:00:03]} Rce7 {[%emt 0:05:25]} 30. Bf3 {[%emt 0:02:56]} Qf6 {[%emt 0:04:47]} 31. Qa5 {[%emt 0:03:02]} Qf5 {[%emt 0:00:38]} 32. Rdd1 {[%emt 0:00:30]} Bf4 {[%emt 0:00:28]} 33. Qa2 {[%emt 0:03:39]} g5 {[%emt 0:02:16]} 34. Qb1 {[%emt 0:00:43]} Qf6 {[%emt 0:01:19]} 35. Qd3 {[%emt 0:01:15]} Kg7 {[%emt 0:00:28]} 36. c4 {[%emt 0:00:09]} dxc4 {[%emt 0:00:50]} 37. bxc4 {[%emt 0:00:00]} h5 {[%emt 0:00:40]} 38. Bd5 {[%emt 0:01:19]} Bxd5 {[%emt 0:00:55]} 39. cxd5 {[%emt 0:00:01]} h4 {[%emt 0:00:39]} 40. Ra2 {[%emt 0:00:00]} Rd8 {[%emt 0:00:00]} 41. Qf3 {[%emt 0:05:34]} Qf7 {[%emt 0:07:49]} 42. Re2 {[%emt 0:10:56]} Rxe2 {[%emt 0:05:30]} 43. Qxe2 {[%emt 0:00:05]} Rxd5 {[%emt 0:01:32]} 44. Ne3 {[%emt 0:03:11]} Rd6 {[%emt 0:04:55]} 45. Qd3 {[%emt 0:05:58]} Rf6 {[%emt 0:04:24]} 46. Ng4 {[%emt 0:01:21]} Rd6 {[%emt 0:06:47]} 47. d5 {[%emt 0:01:04]} b5 {[%emt 0:02:45]} 48. Qd4+ {[%emt 0:02:36]} Kg6 {[%emt 0:00:27]} 49. Qe4+ {[%emt 0:02:14]} Kh5 {[%emt 0:01:00]} 50. Qe2 {[%emt 0:02:49]} Kg6 {[%emt 0:00:30]} 51. Qe4+ {[%emt 0:00:26]} Kh5 {[%emt 0:00:11]} 52. Qe2 {[%emt 0:00:39]} Kg6 {[%emt 0:00:02]} 53. Qe4+ {[%emt 0:00:07]} 1/2-1/2

[Event "22nd ETCC Women 2019"]
[Site "Batumi"]
[Date "2019.10.24"]
[Round "1.7"]
[White "De Seroux, Camille"]
[Black "Gueci, Tea"]
[Result "1/2-1/2"]
[ECO "A45"]
[WhiteElo "2140"]
[BlackElo "2265"]
[Annotator "NA"]
[PlyCount "86"]
[EventDate "2019.10.24"]
[EventType "team-tourn"]
[EventCountry "GEO"]
[SourceTitle "playchess.com"]
[Source "ChessBase"]
[SourceQuality "1"]
[WhiteTeam "Switzerland"]
[BlackTeam "Italy"]
[WhiteTeamCountry "SUI"]
[BlackTeamCountry "ITA"]
[TimeControl "40/5400+30:1800+30"]

1. d4 {[%emt 0:00:00]} Nf6 {[%emt 0:00:00]} 2. Bf4 {[%emt 0:00:00]} d6 {[%emt 0:00:06]} 3. e3 {[%emt 0:04:07]} g6 {[%emt 0:00:23]} 4. Nd2 {[%emt 0:02:46]} Bg7 {[%emt 0:00:20]} 5. h3 {[%emt 0:00:35]} Nbd7 {[%emt 0:01:29]} 6. Ngf3 {[%emt 0:00:45]} O-O {[%emt 0:01:23]} 7. Be2 {[%emt 0:06:42]} b6 {[%emt 0:01:48]} 8. O-O {[%emt 0:01:24]} Bb7 {[%emt 0:00:51]} 9. c4 {[%emt 0:01:16]} Re8 {[%emt 0:05:35]} 10. Bh2 {[%emt 0:04:40]} e5 {[%emt 0:02:04]} 11. d5 {[%emt 0:05:36]} e4 {[%emt 0:08:57]} 12. Nd4 {[%emt 0:00:29]} a5 {[%emt 0:03:14]} 13. b3 {[%emt 0:02:04]} Nc5 {[%emt 0:13:06]} 14. a3 {[%emt 0:06:18]} Qe7 {[%emt 0:02:38]} 15. Qc2 {[%emt 0:05:07]} Nfd7 {[%emt 0:13:03]} 16. b4 {[%emt 0:10:28]} axb4 {[%emt 0:00:53]} 17. axb4 {[%emt 0:00:12]} Na6 {[%emt 0:00:43]} 18. Ra4 {[%emt 0:04:33]} Bxd4 {[%emt 0:22:02]} 19. exd4 {[%emt 0:02:16]} e3 {[%emt 0:00:05]} 20. Nf3 {[%emt 0:06:04]} c6 {[%emt 0:04:10]} 21. dxc6 {[%emt 0:18:03]} Bxc6 {[%emt 0:00:04]} 22. b5 {[%emt 0:00:22]} Be4 {[%emt 0:00:25]} 23. Qc1 {[%emt 0:03:12]} exf2+ {[%emt 0:01:07]} 24. Rxf2 {[%emt 0:00:11]} Nc7 {[%emt 0:03:54]} 25. Rxa8 {[%emt 0:01:12]} Rxa8 {[%emt 0:00:42]} 26. Qe3 {[%emt 0:05:18]} f5 {[%emt 0:02:12]} 27. Nd2 {[%emt 0:01:30]} Nf6 {[%emt 0:01:48]} 28. Qg5 {[%emt 0:05:15]} Ne6 {[%emt 0:01:46]} 29. Bxd6 {[%emt 0:00:37]} Qd8 {[%emt 0:03:21]} 30. Qh4 {[%emt 0:00:51]} Nxd4 {[%emt 0:05:46]} 31. Be5 {[%emt 0:01:47]} Nxe2+ {[%emt 0:00:39]} 32. Rxe2 {[%emt 0:00:02]} Nd7 {[%emt 0:00:24]} 33. Qxd8+ {[%emt 0:01:00]} Rxd8 {[%emt 0:00:01]} 34. Bd4 {[%emt 0:01:10]} Rc8 {[%emt 0:01:09]} 35. Kf2 {[%emt 0:00:52]} Kf7 {[%emt 0:00:34]} 36. Nxe4 {[%emt 0:00:34]} fxe4 {[%emt 0:00:02]} 37. Rc2 {[%emt 0:00:35]} Ke6 {[%emt 0:01:13]} 38. Ke3 {[%emt 0:00:30]} Ne5 {[%emt 0:00:25]} 39. Kxe4 {[%emt 0:00:25]} Nxc4 {[%emt 0:00:11]} 40. Kd3 {[%emt 0:00:00]} Ne5+ {[%emt 0:00:00]} 41. Kd2 {[%emt 0:05:49]} Nc4+ {[%emt 0:03:38]} 42. Kd3 {[%emt 0:01:39]} Ne5+ {[%emt 0:01:20]} 43. Kd2 {[%emt 0:00:16]} Nc4+ {[%emt 0:02:32]} 1/2-1/2

[Event "22nd ETCC Women 2019"]
[Site "Batumi"]
[Date "2019.10.24"]
[Round "1.8"]
[White "Miturova, Magdalena"]
[Black "Arabidze, Meri"]
[Result "0-1"]
[ECO "A05"]
[WhiteElo "2179"]
[BlackElo "2398"]
[Annotator "NA"]
[PlyCount "60"]
[EventDate "2019.10.24"]
[EventType "team-tourn"]
[EventCountry "GEO"]
[SourceTitle "playchess.com"]
[Source "ChessBase"]
[SourceQuality "1"]
[WhiteTeam "Czech Republic"]
[BlackTeam "Georgia"]
[WhiteTeamCountry "CZE"]
[BlackTeamCountry "GEO"]
[TimeControl "40/5400+30:1800+30"]

1. Nf3 {[%emt 0:00:00]} Nf6 {[%emt 0:00:00]} 2. g3 {[%emt 0:00:00]} b5 {[%emt 0:00:09]} 3. d3 {[%emt 0:00:44]} Bb7 {[%emt 0:01:20]} 4. e4 {[%emt 0:00:10]} d6 {[%emt 0:01:13]} 5. Bg2 {[%emt 0:00:47]} e6 {[%emt 0:00:42]} 6. O-O {[%emt 0:01:48]} Be7 {[%emt 0:00:15]} 7. Nbd2 {[%emt 0:08:00]} O-O {[%emt 0:02:52]} 8. b3 {[%emt 0:04:59]} c5 {[%emt 0:03:11]} 9. Bb2 {[%emt 0:01:17]} Nc6 {[%emt 0:01:50]} 10. a4 {[%emt 0:08:15]} a6 {[%emt 0:03:36]} 11. Re1 {[%emt 0:16:29]} Qb6 {[%emt 0:08:07]} 12. Nf1 {[%emt 0:05:34]} Rfc8 {[%emt 0:04:35]} 13. d4 {[%emt 0:12:06]} cxd4 {[%emt 0:06:58]} 14. Nxd4 {[%emt 0:00:11]} Nxd4 {[%emt 0:03:12]} 15. Bxd4 {[%emt 0:00:08]} Qc7 {[%emt 0:02:39]} 16. Re2 {[%emt 0:02:52]} h6 {[%emt 0:06:10]} 17. f3 {[%emt 0:14:32]} Nd7 {[%emt 0:15:23]} 18. Ne3 {[%emt 0:04:05]} Bf6 {[%emt 0:01:12]} 19. Bxf6 {[%emt 0:05:19]} Nxf6 {[%emt 0:00:11]} 20. c4 {[%emt 0:03:08]} bxc4 {[%emt 0:02:48]} 21. Nxc4 {[%emt 0:01:29]} d5 {[%emt 0:03:32]} 22. Nd2 {[%emt 0:03:28]} a5 {[%emt 0:05:20]} 23. Rf2 {[%emt 0:02:23]} Qc3 {[%emt 0:04:31]} 24. Rb1 {[%emt 0:01:25]} Rab8 {[%emt 0:01:24]} 25. Qe1 {[%emt 0:01:47]} dxe4 {[%emt 0:01:44]} 26. fxe4 {[%emt 0:00:24]} Ng4 {[%emt 0:00:50]} 27. Rf3 {[%emt 0:01:10]} Qd4+ {[%emt 0:00:24]} 28. Kh1 {[%emt 0:00:08]} Rc2 {[%emt 0:00:48]} 29. Rd1 {[%emt 0:00:58]} Rd8 {[%emt 0:00:18]} 30. h3 {[%emt 0:00:48]} Ne5 {[%emt 0:01:27]} 0-1

[Event "22nd ETCC Women 2019"]
[Site "Batumi"]
[Date "2019.10.24"]
[Round "1.8"]
[White "Movileanu, Daniela"]
[Black "Pellicoro, Nathalie"]
[Result "1-0"]
[ECO "B48"]
[WhiteElo "2173"]
[BlackElo "1967"]
[Annotator "NA"]
[PlyCount "49"]
[EventDate "2019.10.24"]
[EventType "team-tourn"]
[EventCountry "GEO"]
[SourceTitle "playchess.com"]
[Source "ChessBase"]
[SourceQuality "1"]
[WhiteTeam "Italy"]
[BlackTeam "Switzerland"]
[WhiteTeamCountry "ITA"]
[BlackTeamCountry "SUI"]
[TimeControl "40/5400+30:1800+30"]

1. e4 {[%emt 0:00:00]} c5 {[%emt 0:00:00]} 2. Nf3 {[%emt 0:00:00]} e6 {[%emt 0:00:00]} 3. d4 {[%emt 0:00:00]} cxd4 {[%emt 0:00:09]} 4. Nxd4 {[%emt 0:00:03]} Nc6 {[%emt 0:00:19]} 5. Nc3 {[%emt 0:00:56]} Qc7 {[%emt 0:00:11]} 6. Be3 {[%emt 0:00:14]} Nf6 {[%emt 0:00:23]} 7. f4 {[%emt 0:00:23]} Bb4 {[%emt 0:01:44]} 8. Ndb5 {[%emt 0:02:12]} Qa5 {[%emt 0:00:46]} 9. e5 {[%emt 0:01:02]} Nd5 {[%emt 0:02:28]} 10. Bd2 {[%emt 0:00:29]} Nxc3 {[%emt 0:03:18]} 11. Nxc3 {[%emt 0:00:17]} O-O {[%emt 0:12:34]} 12. a3 {[%emt 0:06:35]} Bxc3 {[%emt 0:11:06]} 13. Bxc3 {[%emt 0:00:07]} Qc7 {[%emt 0:00:23]} 14. Qg4 {[%emt 0:06:37]} a5 {[%emt 0:04:00]} 15. Bd3 {[%emt 0:07:41]} h6 {[%emt 0:09:44]} 16. O-O-O {[%emt 0:02:48]} Ne7 {[%emt 0:07:10]} 17. Be4 {[%emt 0:05:24]} Rb8 {[%emt 0:00:10]} 18. Rd3 {[%emt 0:02:47]} Nf5 {[%emt 0:05:07]} 19. Qh3 {[%emt 0:08:57]} b5 {[%emt 0:04:46]} 20. g4 {[%emt 0:00:25]} d5 {[%emt 0:02:53]} 21. gxf5 {[%emt 0:07:31]} dxe4 {[%emt 0:02:16]} 22. Rg3 {[%emt 0:02:04]} Kh7 {[%emt 0:17:03]} 23. Rxg7+ {[%emt 0:03:42]} Kxg7 {[%emt 0:00:34]} 24. Rg1+ {[%emt 0:00:03]} Kh7 {[%emt 0:00:35]} 25. f6 {[%emt 0:01:11]} 1-0

[Event "22nd ETCC Women 2019"]
[Site "Batumi"]
[Date "2019.10.24"]
[Round "1.9"]
[White "Vega Gutierrez, Sabrina"]
[Black "Machlik, Monika"]
[Result "1-0"]
[ECO "E11"]
[WhiteElo "2395"]
[BlackElo "2159"]
[Annotator "NA"]
[PlyCount "135"]
[EventDate "2019.10.24"]
[EventType "team-tourn"]
[EventCountry "GEO"]
[SourceTitle "playchess.com"]
[Source "ChessBase"]
[SourceQuality "1"]
[WhiteTeam "Spain"]
[BlackTeam "Norway"]
[WhiteTeamCountry "ESP"]
[BlackTeamCountry "NOR"]
[TimeControl "40/5400+30:1800+30"]

1. d4 {[%emt 0:00:00]} Nf6 {[%emt 0:00:00]} 2. c4 {[%emt 0:00:00]} e6 {[%emt 0:00:00]} 3. Nf3 {[%emt 0:00:05]} Bb4+ {[%emt 0:00:18]} 4. Bd2 {[%emt 0:00:42]} a5 {[%emt 0:00:13]} 5. a3 {[%emt 0:00:39]} Bxd2+ {[%emt 0:00:51]} 6. Qxd2 {[%emt 0:00:32]} d6 {[%emt 0:02:51]} 7. Nc3 {[%emt 0:00:29]} Nc6 {[%emt 0:03:38]} 8. Rd1 {[%emt 0:03:43]} O-O {[%emt 0:03:15]} 9. e4 {[%emt 0:00:38]} Qe7 {[%emt 0:14:17]} 10. Be2 {[%emt 0:09:21]} e5 {[%emt 0:05:50]} 11. d5 {[%emt 0:20:46]} Nb8 {[%emt 0:02:59]} 12. b4 {[%emt 0:00:41]} Nh5 {[%emt 0:15:46]} 13. g3 {[%emt 0:01:13]} g6 {[%emt 0:03:49]} 14. O-O {[%emt 0:05:02]} Ng7 {[%emt 0:06:37]} 15. c5 {[%emt 0:06:00]} axb4 {[%emt 0:04:14]} 16. cxd6 {[%emt 0:04:06]} cxd6 {[%emt 0:01:40]} 17. axb4 {[%emt 0:00:08]} f5 {[%emt 0:01:26]} 18. Qg5 {[%emt 0:12:33]} Qd7 {[%emt 0:07:00]} 19. Bb5 {[%emt 0:13:30]} Qc7 {[%emt 0:09:26]} 20. Rc1 {[%emt 0:00:19]} Qb6 {[%emt 0:00:52]} 21. Nd2 {[%emt 0:08:59]} Bd7 {[%emt 0:07:07]} 22. Nc4 {[%emt 0:00:41]} Qc7 {[%emt 0:00:27]} 23. Qe7 {[%emt 0:05:16]} Ne8 {[%emt 0:01:28]} 24. Bxd7 {[%emt 0:00:31]} Qxd7 {[%emt 0:01:00]} 25. Qxd7 {[%emt 0:03:33]} Nxd7 {[%emt 0:00:01]} 26. Nb5 {[%emt 0:00:40]} Ra4 {[%emt 0:03:56]} 27. Rb1 {[%emt 0:00:42]} Rf6 {[%emt 0:00:56]} 28. exf5 {[%emt 0:00:39]} gxf5 {[%emt 0:00:09]} 29. Na5 {[%emt 0:01:02]} b6 {[%emt 0:01:32]} 30. Nc6 {[%emt 0:00:06]} f4 {[%emt 0:01:22]} 31. Ra1 {[%emt 0:00:14]} Rxa1 {[%emt 0:00:36]} 32. Rxa1 {[%emt 0:00:02]} fxg3 {[%emt 0:00:29]} 33. hxg3 {[%emt 0:00:15]} Rf8 {[%emt 0:00:34]} 34. Ra7 {[%emt 0:01:41]} Ndf6 {[%emt 0:00:35]} 35. Nc3 {[%emt 0:00:44]} Rf7 {[%emt 0:01:09]} 36. Ra8 {[%emt 0:00:12]} Kg7 {[%emt 0:01:01]} 37. Nd8 {[%emt 0:02:11]} Re7 {[%emt 0:00:29]} 38. Ne6+ {[%emt 0:00:29]} Kf7 {[%emt 0:00:27]} 39. Rb8 {[%emt 0:00:31]} Nd7 {[%emt 0:00:33]} 40. Rb7 {[%emt 0:00:00]} Nef6 {[%emt 0:00:00]} 41. Ng5+ {[%emt 0:05:07]} Kf8 {[%emt 0:09:32]} 42. Nge4 {[%emt 0:01:17]} Ne8 {[%emt 0:01:14]} 43. f3 {[%emt 0:05:07]} Ndf6 {[%emt 0:15:53]} 44. Rxb6 {[%emt 0:01:32]} Rc7 {[%emt 0:00:05]} 45. Nxf6 {[%emt 0:09:36]} Nxf6 {[%emt 0:01:29]} 46. Rxd6 {[%emt 0:00:11]} Rxc3 {[%emt 0:03:16]} 47. Rxf6+ {[%emt 0:00:10]} Kg7 {[%emt 0:02:07]} 48. Rf5 {[%emt 0:02:25]} Rd3 {[%emt 0:00:23]} 49. d6 {[%emt 0:04:16]} e4 {[%emt 0:00:55]} 50. fxe4 {[%emt 0:01:25]} Rxd6 {[%emt 0:00:21]} 51. Rd5 {[%emt 0:03:00]} Ra6 {[%emt 0:00:49]} 52. Kf2 {[%emt 0:00:48]} Ra4 {[%emt 0:00:20]} 53. Rb5 {[%emt 0:00:12]} Ra3 {[%emt 0:00:07]} 54. Rb6 {[%emt 0:00:15]} Rb3 {[%emt 0:00:07]} 55. e5 {[%emt 0:01:45]} Kf7 {[%emt 0:00:09]} 56. Rf6+ {[%emt 0:01:23]} Ke7 {[%emt 0:00:38]} 57. Rf4 {[%emt 0:00:32]} Ke6 {[%emt 0:00:31]} 58. Re4 {[%emt 0:00:04]} Kd5 {[%emt 0:01:39]} 59. e6 {[%emt 0:00:44]} Kxe4 {[%emt 0:00:17]} 60. e7 {[%emt 0:00:03]} Rb2+ {[%emt 0:00:35]} 61. Kg1 {[%emt 0:00:33]} Rb1+ {[%emt 0:00:37]} 62. Kg2 {[%emt 0:00:07]} Rb2+ {[%emt 0:00:30]} 63. Kh3 {[%emt 0:00:11]} Rxb4 {[%emt 0:00:31]} 64. e8=Q+ {[%emt 0:00:08]} Kd3 {[%emt 0:00:28]} 65. Qd7+ {[%emt 0:00:15]} Rd4 {[%emt 0:00:08]} 66. Qxh7+ {[%emt 0:00:06]} Ke3 {[%emt 0:00:02]} 67. Qf5 {[%emt 0:00:18]} Rd1 {[%emt 0:00:19]} 68. Qf4+ {[%emt 0:00:34]} 1-0

[Event "22nd ETCC Women 2019"]
[Site "Batumi"]
[Date "2019.10.24"]
[Round "1.9"]
[White "Hoolt, Sarah"]
[Black "Ushenina, Anna"]
[Result "0-1"]
[ECO "B31"]
[WhiteElo "2323"]
[BlackElo "2431"]
[Annotator "NA"]
[PlyCount "72"]
[EventDate "2019.10.24"]
[EventType "team-tourn"]
[EventCountry "GEO"]
[SourceTitle "playchess.com"]
[Source "ChessBase"]
[SourceQuality "1"]
[WhiteTeam "Germany"]
[BlackTeam "Ukraine"]
[WhiteTeamCountry "NOR"]
[BlackTeamCountry "UKR"]
[TimeControl "40/5400+30:1800+30"]

1. e4 {[%emt 0:00:00]} c5 {[%emt 0:00:00]} 2. Nf3 {[%emt 0:00:00]} Nc6 {[%emt 0:00:01]} 3. Bb5 {[%emt 0:00:09]} g6 {[%emt 0:00:16]} 4. Bxc6 {[%emt 0:00:08]} dxc6 {[%emt 0:00:05]} 5. d3 {[%emt 0:00:09]} Bg7 {[%emt 0:00:21]} 6. h3 {[%emt 0:00:17]} Nf6 {[%emt 0:01:12]} 7. Nc3 {[%emt 0:00:38]} Nd7 {[%emt 0:00:55]} 8. Be3 {[%emt 0:00:46]} e5 {[%emt 0:01:40]} 9. Qd2 {[%emt 0:00:19]} h6 {[%emt 0:00:04]} 10. O-O {[%emt 0:03:23]} b6 {[%emt 0:01:47]} 11. a4 {[%emt 0:00:10]} Nf8 {[%emt 0:01:44]} 12. a5 {[%emt 0:03:00]} Rb8 {[%emt 0:00:03]} 13. Na4 {[%emt 0:05:10]} Ne6 {[%emt 0:04:53]} 14. Nh2 {[%emt 0:05:35]} c4 {[%emt 0:36:51]} 15. Rfd1 {[%emt 0:24:42]} cxd3 {[%emt 0:03:24]} 16. axb6 {[%emt 0:06:25]} axb6 {[%emt 0:01:08]} 17. c4 {[%emt 0:02:09]} Nd4 {[%emt 0:18:40]} 18. Qxd3 {[%emt 0:00:47]} O-O {[%emt 0:01:34]} 19. b4 {[%emt 0:09:55]} b5 {[%emt 0:04:41]} 20. Nc5 {[%emt 0:01:39]} Qe7 {[%emt 0:00:57]} 21. Bxd4 {[%emt 0:15:33]} exd4 {[%emt 0:00:04]} 22. cxb5 {[%emt 0:02:53]} Rxb5 {[%emt 0:00:23]} 23. Ra4 {[%emt 0:00:20]} f5 {[%emt 0:02:42]} 24. Qc4+ {[%emt 0:03:03]} Kh7 {[%emt 0:02:40]} 25. Re1 {[%emt 0:00:56]} fxe4 {[%emt 0:01:19]} 26. Rxe4 {[%emt 0:01:13]} Rxc5 {[%emt 0:01:27]} 27. Rxe7 {[%emt 0:03:13]} Rxc4 {[%emt 0:00:03]} 28. Raa7 {[%emt 0:00:11]} Rc1+ {[%emt 0:00:24]} 29. Nf1 {[%emt 0:00:06]} Rg8 {[%emt 0:01:17]} 30. g4 {[%emt 0:00:06]} d3 {[%emt 0:05:19]} 31. Kg2 {[%emt 0:00:22]} Rc2 {[%emt 0:00:17]} 32. Ne3 {[%emt 0:04:41]} Re2 {[%emt 0:00:51]} 33. Kf3 {[%emt 0:01:25]} Re1 {[%emt 0:01:08]} 34. Ra2 {[%emt 0:01:04]} Kh8 {[%emt 0:01:17]} 35. Rc7 {[%emt 0:03:13]} Rd8 {[%emt 0:00:53]} 36. Rxc6 {[%emt 0:03:31]} Bb7 0-1